lending/lending_fUSD_20250424
["ID","MTS","AMOUNT","RATE_DAILY","PERIOD"]
[358830277,1745483432946,-300.0,0.00019999,2]
[358830278,1745483432956,-300.0,0.00019999,2]
[358830279,1745483432969,-500.0,0.00019999,2]
[358830280,1745483432980,-500.0,0.00019999,2]
[358830281,1745483432989,-500.0,0.00019999,2]
[358830282,1745483433000,-500.0,0.00019999,2]
[358830283,1745483433010,-500.0,0.00019999,2]
[358830284,1745483433020,-500.0,0.00019999,2]
[358830285,1745483433030,-500.0,0.00019999,2]
[358830286,1745483433041,-500.0,0.00019999,2]
[358830287,1745483433052,-500.0,0.00019999,2]
[358830288,1745483433062,-432.76976354,0.00019999,2]
[358830289,1745483433072,-500.0,0.00019999,2]
[358830290,1745483433082,-151.0,0.00019999,2]
[358830291,1745483433093,-158.74647399,0.00019999,2]
[358830292,1745483433103,-807.0,0.00019999,2]
[358830293,1745483433112,-260636.2536933,0.0002,2]
[358830294,1745483433132,-2545.66225342,0.0002,2]
[358830295,1745483433145,-252.12988919,0.0002,2]
[358830296,1745483433157,-3894.63008053,0.0002,2]
[358830297,1745483433168,-46032.5,0.0002,2]
[358830298,1745483433238,-439.14872352,0.0002,2]
[358830300,1745483438260,-186.69497425,0.00019999,2]
[358830301,1745483438274,-91.75471171,0.0002,2]
[358830302,1745483438319,-5644.51279605,0.0002,2]
[358830303,1745483438332,-723605.32198031,0.0002,2]
[358830304,1745483438343,-213.31021645,0.0002,2]
[358830305,1745483438353,-1615757.33657029,0.0002,2]
[358830306,1745483438366,-2494318.525,0.0002,2]
[358830307,1745483438593,-347.08003479,0.0002,2]
[358830308,1745483438606,-3057.96291351,0.0002,2]
[358830483,1745483440522,-369.99083331,0.0002,2]
[358830511,1745483440791,-360.00916669,0.0002,2]
[358830513,1745483440803,-3043.64160162,0.0002,2]
[358830515,1745483440816,-797.6518777,0.0002,2]
[358830519,1745483440849,-13317.9025324,0.0002,2]
[358830822,1745483443562,-12057.66801824,0.0002,2]
[358830835,1745483443672,-8749.99999999,0.0002,2]
[358830837,1745483443685,-92351.33399999,0.0002,2]
[358831148,1745483446946,-654.0,0.0002,2]
[358831150,1745483446957,-722.22902163,0.0002,2]
[358831151,1745483446982,-9202.0,0.0002,2]
[358831152,1745483446999,-920.0,0.0002,2]
[358831153,1745483447021,-5763.876514,0.0002,2]
[358831154,1745483447038,-9191.2,0.0002,2]
[358831155,1745483447074,967.37,0.00018552,2]
[358831376,1745483714538,2367.9,0.00037808,60]
[358831377,1745483755625,1015.19708042,0.00037808,60]
[358831378,1745483820176,4798.79602512,0.00037808,60]
[358831379,1745483829268,130000.0,0.00037,60]
[358831380,1745483981766,-162.13,0.0001911,2]
[358831381,1745483981789,-285.27,0.00019148,2]
[358831382,1745483981812,-1000.0,0.00019203,2]
[358831383,1745483981834,-200.0,0.00019253,2]
[358831384,1745483981856,-357.0892024,0.00019799,2]
[358831385,1745483981879,-150.0,0.00019843,2]
[358831386,1745483981904,-353.1481,0.00019886,2]
[358831387,1745483981930,-300.0,0.00019899,2]
[358831388,1745483981960,-2500.0,0.000199,2]
[358831389,1745483981983,-1060.6676,0.000199,2]
[358831390,1745483982012,-571.03278863,0.000199,2]
[358831391,1745483982035,-585.02659938,0.000199,2]
[358831392,1745483982057,-4308.45866558,0.000199,2]
[358831393,1745483982080,-9345.03625921,0.0001995,2]
[358831394,1745483982104,-500.0,0.00019973,2]
[358831395,1745483982127,-1200.0,0.00019985,2]
[358831396,1745483982150,-500.0,0.00019985,2]
[358831397,1745483982172,-269.1094899,0.00019985,2]
[358831398,1745483982196,-500.0,0.00019985,2]
[358831399,1745483982223,-298.74909151,0.00019985,2]
[358831400,1745483982245,-259.06462632,0.00019985,2]
[358831401,1745483982268,-6757.3280452,0.00019986,2]
[358831402,1745483982290,-3471.4344031,0.00019986,2]
[358831403,1745483982312,-26861.70626623,0.00019986,2]
[358831404,1745484234191,500.0,0.00037808,60]
[358831413,1745484325564,100429.8483128,0.000378,60]
[358831414,1745484420334,747.03936612,0.00017212,2]
[358831415,1745484420359,171.96063388,0.00017212,2]
[358831416,1745484499043,331.0,0.000378,60]
[358831418,1745484620107,250.0,0.00017,2]
[358831419,1745484621205,300.0,0.00019,2]
[358831482,1745484632114,-610.44814184,0.0001913,2]
[358831486,1745484632131,-1073.90425003,0.0001913,2]
[358831489,1745484632143,-564.09140236,0.0001913,2]
[358831491,1745484632154,-1166.26282641,0.0001913,2]
[358831494,1745484632166,-1438.00337936,0.0001913,2]
[358831497,1745484632176,-186.73,0.00019227,2]
[358831499,1745484632190,-2267.53,0.00019228,2]
[358831501,1745484632200,-1200.0,0.00019475,2]
[358831503,1745484632210,-919.0,0.00019476,2]
[358831504,1745484632220,-471.01945532,0.000197,2]
[358831505,1745484632231,-300.0,0.00019767,2]
[358831506,1745484632241,-166.66,0.00019768,2]
[358831507,1745484632251,-339.2347423,0.00019799,2]
[358831508,1745484632261,-171.11988506,0.000199,2]
[358831509,1745484632271,-3286.74302138,0.000199,2]
[358831510,1745484632280,-161.75,0.000199,2]
[358831511,1745484632291,-154.28,0.000199,2]
[358831512,1745484632300,-191.42256832,0.000199,2]
[358831513,1745484632310,-161.75,0.000199,2]
[358831514,1745484632320,-150.0,0.000199,2]
[358831515,1745484632329,-9626.06,0.00019945,2]
[358831516,1745484632339,-526.91,0.00019945,2]
[358831517,1745484632349,-150.99,0.00019945,2]
[358831518,1745484632358,-150.0,0.00019945,2]
[358831519,1745484632368,-159.71085133,0.00019973,2]
[358831520,1745484632378,-500.0,0.00019973,2]
[358831521,1745484632388,-9036.37791177,0.00019976,2]
[358831522,1745484632397,-531.34523843,0.00019985,2]
[358831523,1745484632407,-188.37664293,0.00019985,2]
[358831524,1745484632416,-559.12436405,0.00019985,2]
[358831525,1745484632426,-500.0,0.00019985,2]
[358831526,1745484632435,-198.61436575,0.00019985,2]
[358831527,1745484632445,-5473.0445171,0.00019986,2]
[358831528,1745484632454,-4069.57778412,0.00019986,2]
[358831529,1745484632467,-73285.58778228,0.00019986,2]
[358831530,1745484632476,-2587.7763136,0.00019986,2]
[358831531,1745484632486,-207.4,0.00019988,2]
[358831532,1745484632495,-151.0,0.00019988,2]
[358831533,1745484632505,-151.0,0.00019988,2]
[358831534,1745484632515,-968.77,0.0001999,2]
[358831535,1745484632525,-224.94,0.00019999,2]
[358831536,1745484632535,-500.0,0.00019999,2]
[358831537,1745484632546,-500.0,0.00019999,2]
[358831538,1745484632556,-531.86746107,0.00019999,2]
[358831539,1745484632565,-500.0,0.00019999,2]
[358831540,1745484632575,-500.0,0.00019999,2]
[358831541,1745484632584,-500.0,0.00019999,2]
[358831542,1745484632593,-500.0,0.00019999,2]
[358831543,1745484632602,-500.0,0.00019999,2]
[358831544,1745484632612,-500.0,0.00019999,2]
[358831545,1745484632621,-583.0,0.0002,2]
[358831546,1745484632630,-213.31021645,0.0002,2]
[358831547,1745484632640,-24145.34784556,0.0002,2]
[358831548,1745484632652,-2011.13914152,0.0002,2]
[358831549,1745484632663,-365.19994533,0.0002,2]
[358831550,1745484632674,-10046.36058924,0.0002,2]
[358831551,1745484632685,-5879.58474756,0.0002,2]
[358831552,1745484632697,-4598.72,0.0002,2]
[358831553,1745484632709,-906.39902766,0.0002,2]
[358831554,1745484632721,-970.99304133,0.0002,2]
[358831555,1745484632732,-1123.70313936,0.0002,2]
[358831556,1745484632744,-2374.49246916,0.0002,2]
[358831557,1745484632756,-312.5,0.0002,2]
[358831558,1745484632769,-948.9,0.0002,2]
[358831559,1745484632780,-927.61514,0.0002,2]
[358831560,1745484632793,-1069.849955,0.0002,2]
[358831561,1745484632804,-13162.00166556,0.0002,2]
[358831565,1745484637419,-358.33485164,0.0002,2]
[358831572,1745484637527,-2429.99999984,0.0002,2]
[358831573,1745484637635,-1875.07634035,0.0002,2]
[358831574,1745484637648,-2411.74774901,0.0002,2]
[358831575,1745484637660,-322.19511542,0.0002,2]
[358831576,1745484637690,-426.425998,0.0002,2]
[358831577,1745484637703,-875761.02979991,0.0002,2]
[358831578,1745484637714,-1463814.93896714,0.0002,2]
[358831579,1745484637726,-2494318.525,0.0002,2]
[358831580,1745484637850,-659.5055265,0.0002,2]
[358831581,1745484637863,-11568.6154122,0.0002,2]
[358831582,1745484637875,-5447.46272893,0.0002,2]
[358831583,1745484637887,-3600.0,0.0002,2]
[358831584,1745484637899,-689.32368187,0.0002,2]
[358831725,1745484639637,-1500.0,0.0002,2]
[358831991,1745484643166,-3419.9896,0.0002,2]
[358832011,1745484645476,-534.27500182,0.0002,2]
[358832012,1745484645492,-102.72499818,0.0002,2]
[358832013,1745484645506,-4245.05848782,0.0002,2]
[358832014,1745484645635,-918.72447781,0.0002,2]
[358832032,1745484646232,-1597.8493469,0.0002,2]
[358832033,1745484646248,-1497.41999184,0.0002,2]
[358832034,1745484646263,-918.0,0.0002,2]
[358832035,1745484826531,-183.97,0.00019276,2]
[358832036,1745484826556,-322.2730051,0.00019799,2]
[358832037,1745484826580,-200.0,0.00019873,2]
[358832038,1745484826602,-311.50995414,0.00019873,2]
[358832039,1745484826625,-2363.6972,0.00019886,2]
[358832040,1745484826649,-3131.0209,0.00019886,2]
[358832041,1745484826674,-300.0,0.00019898,2]
[358832042,1745484826703,-500.0,0.00019899,2]
[358832043,1745484826728,-192.81028947,0.00019899,2]
[358832044,1745484826752,-371.9416669,0.00019899,2]
[358832045,1745484826778,-380.41711086,0.00019899,2]
[358832046,1745484826800,-570.03327296,0.00019899,2]
[358832047,1745484826823,-190915.4743,0.000199,2]
[358832048,1745484826845,-1000.0,0.000199,2]
[358832049,1745484826867,-4429.3953,0.000199,2]
[358832050,1745484826889,-2500.0,0.000199,2]
[358832051,1745484826913,-1276.67349573,0.000199,2]
[358832052,1745484848475,799.378959,7.945e-05,2]
[358832053,1745484893222,-1000.0,0.00019415,2]
[358832054,1745484893246,-206.24300511,0.00019799,2]
[358832055,1745485220073,775.079412,0.00037808,60]
[358832056,1745485226921,775.079412,0.00019973,14]
[358832057,1745485231022,775.079412,0.0002,4]
[358832058,1745485237025,250000.0,0.00037808,60]
[358832059,1745485251688,154.75,0.00026219,120]
[358832060,1745485251915,154.75,0.00028603,120]
[358832061,1745485282947,236366.54,0.00037808,60]
[358832062,1745485561188,-154.75,0.00019069,2]
[358832063,1745485561214,-306.53,0.00019071,2]
[358832064,1745485561239,-151.09510482,0.00019164,2]
[358832065,1745485561263,-250.0,0.00019241,2]
[358832066,1745485561288,-1200.0,0.00019263,2]
[358832067,1745485561311,-14433.35,0.00019264,2]
[358832068,1745485561336,-250.53,0.00019319,2]
[358832069,1745485561360,-285.27,0.00019429,2]
[358832070,1745485561387,-166.68,0.00019605,2]
[358832071,1745485561412,-161.75,0.000197,2]
[358832072,1745485561436,-150.0,0.000197,2]
[358832073,1745485561461,-295.8472046,0.00019799,2]
[358832074,1745485561489,-151.09510482,0.000198,2]
[358832075,1745485561514,-494.90572512,0.00019873,2]
[358832076,1745485561539,-1215.66,0.00019886,2]
[358832077,1745485561563,-3157.6,0.00019899,2]
[358832078,1745485561588,-1441.1519,0.000199,2]
[358832079,1745485561611,-896.7283,0.000199,2]
[358832080,1745485561636,-200.00000001,0.000199,2]
[358832081,1745485561661,-11189.7156,0.000199,2]
[358832082,1745485561685,-161.75,0.000199,2]
[358832083,1745485561709,-150.0,0.000199,2]
[358832084,1745485561733,-150.0,0.000199,2]
[358832085,1745485561756,-161.75,0.000199,2]
[358832086,1745485561780,-191.42256831,0.000199,2]
[358832087,1745485561804,-1610.22642347,0.000199,2]
[358832088,1745485561836,300.0,0.00019263,2]
[358832089,1745485562156,850.0,0.00019899,2]
[358832090,1745485660551,212.0,0.000378,120]
[358832091,1745485676593,478.66040712,0.00017366,2]
[358832092,1745485676615,503.31959288,0.00017366,2]
[358832099,1745485795274,250.0,0.000378,60]
[358832100,1745485804041,362.69,0.00019,2]
[358832101,1745485831621,-162.13,0.00019163,2]
[358832102,1745485831631,-296.93208761,0.0001963,2]
[358832103,1745485831673,-685.04791239,0.0001963,2]
[358832104,1745485831682,-250.0,0.00019715,2]
[358832105,1745485831692,-189.45064607,0.00019799,2]
[358832106,1745485831727,-91.60419833,0.00019799,2]
[358832107,1745485831739,-1075.06187927,0.00019899,2]
[358832108,1745485831751,-124.93812073,0.00019899,2]
[358832109,1745485831761,-850.20608035,0.000199,2]
[358832110,1745485831781,-2551.93954754,0.000199,2]
[358832111,1745485831792,-585.30398229,0.000199,2]
[358832112,1745485831803,-2696.70847333,0.000199,2]
[358832133,1745485837977,-43686.25010247,0.000199,2]
[358832134,1745485837988,-191.42256831,0.000199,2]
[358832135,1745485837999,-157.61510103,0.00019973,2]
[358832136,1745485838009,-591.19722479,0.00019973,2]
[358832137,1745485838019,-500.0,0.00019973,2]
[358832138,1745485838032,-5285.70211489,0.00019976,2]
[358832139,1745485838042,-616.29197761,0.00019985,2]
[358832140,1745485838053,-260.35916683,0.00019985,2]
[358832141,1745485838063,-68064.0861043,0.00019986,2]
[358832142,1745485838073,-3976.8762075,0.00019986,2]
[358832144,1745485838083,-1061.1935047,0.00019986,2]
[358832146,1745485838094,-763.4170605,0.00019986,2]
[358832148,1745485838103,-515.6002025,0.00019986,2]
[358832150,1745485838115,-897.07910239,0.00019986,2]
[358832152,1745485838125,-386.09667968,0.00019986,2]
[358832153,1745485838137,-807.429,0.00019988,2]
[358832154,1745485838147,-207.4,0.00019988,2]
[358832155,1745485838157,-151.0,0.00019988,2]
[358832156,1745485838167,-151.0,0.00019988,2]
[358832157,1745485838177,-876.0,0.0001999,2]
[358832158,1745485838188,-5790.0,0.0001999,2]
[358832159,1745485838199,-3986.0,0.0001999,2]
[358832160,1745485838211,-198.901,0.0001999,2]
[358832161,1745485838221,-257.099,0.0001999,2]
[358832162,1745485838240,-871.0,0.0001999,2]
[358832163,1745485838250,-500.0,0.00019999,2]
[358832164,1745485838260,-500.0,0.00019999,2]
[358832165,1745485838271,-500.0,0.00019999,2]
[358832166,1745485838281,-500.0,0.00019999,2]
[358832167,1745485838291,-500.0,0.00019999,2]
[358832168,1745485838301,-500.0,0.00019999,2]
[358832169,1745485838311,-500.0,0.00019999,2]
[358832170,1745485838321,-567.0,0.00019999,2]
[358832171,1745485838331,-879672.91982704,0.0002,2]
[358832172,1745485838342,-1316500.31470867,0.0002,2]
[358832173,1745485838355,-752518.55894833,0.0002,2]
[358832174,1745485838366,-500.0,0.0002,2]
[358832175,1745485838375,-795485.98516907,0.0002,2]
[358832176,1745485838386,-150.0,0.0002,2]
[358832177,1745485838396,-1181.1746662,0.0002,2]
[358832178,1745485838406,-209.0,0.0002,2]
[358832179,1745485838416,-209.0,0.0002,2]
[358832180,1745485838426,-209.0,0.0002,2]
[358832181,1745485838435,-230.0,0.0002,2]
[358832182,1745485838446,-230.0,0.0002,2]
[358832183,1745485838456,-230.0,0.0002,2]
[358832184,1745485838466,-230.0,0.0002,2]
[358832185,1745485838476,-230.0,0.0002,2]
[358832186,1745485838485,-230.0,0.0002,2]
[358832187,1745485838496,-230.0,0.0002,2]
[358832188,1745485838506,-230.0,0.0002,2]
[358832189,1745485838517,-230.0,0.0002,2]
[358832190,1745485838527,-230.0,0.0002,2]
[358832191,1745485838538,-230.0,0.0002,2]
[358832192,1745485838548,-230.0,0.0002,2]
[358832193,1745485838559,-230.0,0.0002,2]
[358832194,1745485838569,-230.0,0.0002,2]
[358832195,1745485838579,-230.0,0.0002,2]
[358832196,1745485838590,-230.0,0.0002,2]
[358832197,1745485838600,-230.0,0.0002,2]
[358832198,1745485838610,-230.0,0.0002,2]
[358832199,1745485838624,-230.0,0.0002,2]
[358832200,1745485838635,-163.628883,0.0002,2]
[358832201,1745485838645,-187.661699,0.0002,2]
[358832202,1745485838655,-187.661699,0.0002,2]
[358832203,1745485838666,-187.661699,0.0002,2]
[358832204,1745485838683,-187.661699,0.0002,2]
[358832205,1745485838694,-187.661699,0.0002,2]
[358832206,1745485838704,-150.0,0.0002,2]
[358832207,1745485838714,-638.049779,0.0002,2]
[358832208,1745485838725,-638.049779,0.0002,2]
[358832209,1745485838736,-638.049779,0.0002,2]
[358832210,1745485838747,-638.049779,0.0002,2]
[358832211,1745485838757,-638.049779,0.0002,2]
[358832212,1745485838768,-569.02234766,0.0002,2]
[358832213,1745485838778,-250.0,0.0002,2]
[358832214,1745485838789,-250.0,0.0002,2]
[358832215,1745485838799,-250.0,0.0002,2]
[358832216,1745485838810,-250.0,0.0002,2]
[358832217,1745485838820,-250.0,0.0002,2]
[358832218,1745485838830,-250.0,0.0002,2]
[358832219,1745485838844,-250.0,0.0002,2]
[358832220,1745485838854,-250.0,0.0002,2]
[358832221,1745485838866,-250.0,0.0002,2]
[358832222,1745485838876,-250.0,0.0002,2]
[358832223,1745485838887,-304.9,0.0002,2]
[358832224,1745485838897,-376.653809,0.0002,2]
[358832225,1745485838908,-376.653809,0.0002,2]
[358832226,1745485838919,-376.653809,0.0002,2]
[358832227,1745485838929,-376.653809,0.0002,2]
[358832228,1745485838939,-376.653809,0.0002,2]
[358832229,1745485838950,-929786.42855074,0.0002,2]
[358832234,1745485840172,-678.87801619,0.0002,2]
[358832235,1745485840185,-1734.3,0.0002,2]
[358832236,1745485840204,-1043.87316363,0.0002,2]
[358832237,1745485840332,-1000.0,0.0002,2]
[358832296,1745485845570,-10695.00005,0.0002,2]
[358832297,1745485845583,-460.26,0.0002,2]
[358832298,1745485845630,-339745.35348,0.0002,2]
[358832299,1745485845784,-322592.23349153,0.0002,2]
[358832300,1745485845796,-7438.8159,0.0002,2]
[358832301,1745485845817,-18454.0,0.0002,2]
[358832303,1745485846326,-747.12822492,0.0002,2]
[358832304,1745485846338,-6448.12,0.0002,2]
[358832305,1745485859324,471.417954,0.00019,2]
[358832306,1745485895812,157.453687,0.00019999,5]
[358832307,1745485926325,152.909533,0.00019999,5]
[358832308,1745485926438,152.909533,0.00019999,5]
[358832309,1745485926504,152.909533,0.00019999,5]
[358832310,1745485929790,424.651617,0.00037808,60]
[358832311,1745485938808,424.651617,0.00019973,14]
[358832312,1745485939735,424.651617,0.0002,4]
[358832313,1745485943052,424.651617,0.00019999,5]
[358832314,1745485943369,424.651617,0.00019999,5]
[358832315,1745485943676,424.651617,0.00019999,5]
[358832316,1745485943963,424.651617,0.00019999,5]
[358832317,1745485944270,424.651617,0.00019999,5]
[358832318,1745486285335,207021.59,0.00037808,60]
[358832319,1745486455131,250.0,0.00017,2]
[358832320,1745486457103,300.0,0.00019,2]
[358832321,1745486501947,-186.1,0.00019017,2]
[358832322,1745486599879,500.0,0.00032877,60]
[358832323,1745486599933,500.0,0.00033151,60]
[358832324,1745486599975,314.1197077,0.00033425,60]
[358832325,1745486622334,250.779155,0.00037808,60]
[358832326,1745486625438,250.779155,0.00019973,14]
[358832327,1745486627398,250.779155,0.0002,4]
[358832328,1745486628232,250.779155,0.00019999,5]
[358832329,1745486628573,250.779155,0.00019999,5]
[358832330,1745486628875,250.779155,0.00019999,5]
[358832331,1745486629173,250.779155,0.00019999,5]
[358832332,1745486629469,250.779155,0.00019999,5]
[358832333,1745486734505,112.57245312,0.00016712,2]
[358832334,1745486734531,71.79754688,0.00016712,2]
[358832335,1745486745427,379.72145764,0.00037808,60]
[358832339,1745486829478,181.49,0.00015194,2]
[358832340,1745486858517,208.28,0.00018962,2]
[358832341,1745486867499,257.27,0.00018962,2]
[358832343,1745486902945,150.0,0.00018929,2]
[358832355,1745486949446,199.93,0.00018915,2]
[358832388,1745486978423,8925.5221879,0.00018,2]
[358832389,1745486988669,1170.65,0.00016992,2]
[358832395,1745487031874,-1190.36121007,0.00019028,2]
[358832406,1745487037857,-624.35878993,0.00019028,2]
[358832407,1745487037868,-311.68517644,0.00019154,2]
[358832408,1745487037913,-359.86727152,0.00019154,2]
[358832409,1745487037930,-328.44755204,0.00019154,2]
[358832410,1745487037939,-1170.65,0.00019256,2]
[358832411,1745487037953,-250.0,0.00019392,2]
[358832412,1745487037962,-229.0,0.0001963,2]
[358832413,1745487037972,-166.68,0.0001972,2]
[358832414,1745487037982,-282.0,0.00019726,2]
[358832415,1745487037991,-150.0,0.00019764,2]
[358832416,1745487038000,-315.3201601,0.00019799,2]
[358832417,1745487038010,-150.0,0.000198,2]
[358832418,1745487038021,-342.28,0.000198,2]
[358832419,1745487038031,-16576.61,0.000198,2]
[358832420,1745487038042,-2043.02,0.000198,2]
[358832421,1745487038051,-1200.0,0.00019829,2]
[358832422,1745487038061,-2908.92614781,0.0001983,2]
[358832423,1745487038071,-111.30702234,0.00019845,2]
[358832424,1745487038087,-51.97486382,0.00019845,2]
[358832425,1745487038097,-150.0,0.00019847,2]
[358832426,1745487038106,-300.0,0.00019872,2]
[358832427,1745487038115,-500.0,0.00019873,2]
[358832428,1745487038126,-500.0,0.00019873,2]
[358832429,1745487038135,-4159.4731,0.00019886,2]
[358832430,1745487038145,-2061.89840082,0.00019888,2]
[358832431,1745487038156,-641.17075531,0.00019888,2]
[358832432,1745487038169,-553.35242132,0.00019888,2]
[358832433,1745487038206,-1112.20343286,0.00019888,2]
[358832434,1745487038216,-4368.62501024,0.00019889,2]
[358832435,1745487038225,-4368.62501024,0.00019891,2]
[358832436,1745487038235,-4368.62501024,0.00019892,2]
[358832437,1745487038244,-4368.62501024,0.00019893,2]
[358832438,1745487038254,-4368.62501024,0.00019895,2]
[358832439,1745487038263,-4368.62501024,0.00019896,2]
[358832440,1745487038273,-4368.62501024,0.00019897,2]
[358832441,1745487038283,-4368.62501024,0.00019899,2]
[358832442,1745487038292,-807.429,0.00019899,2]
[358832443,1745487038301,-260.35916683,0.00019899,2]
[358832444,1745487038311,-616.29197761,0.00019899,2]
[358832445,1745487038321,-17301.9415,0.000199,2]
[358832447,1745487038331,-11259.35381,0.000199,2]
[358832449,1745487038341,-150.0,0.000199,2]
[358832451,1745487038350,-161.75,0.000199,2]
[358832453,1745487038360,-351.08,0.000199,2]
[358832455,1745487038370,-351.08,0.000199,2]
[358832457,1745487038379,-161.75,0.000199,2]
[358832459,1745487038389,-150.0,0.000199,2]
[358832462,1745487038399,-351.08,0.000199,2]
[358832463,1745487038409,-351.08,0.000199,2]
[358832466,1745487038420,-351.08,0.000199,2]
[358832468,1745487038430,-4368.62501024,0.000199,2]
[358832470,1745487038441,-351.08,0.000199,2]
[358832472,1745487038451,-351.08,0.000199,2]
[358832474,1745487038460,-351.08,0.000199,2]
[358832476,1745487038471,-150.0,0.00019924,2]
[358832478,1745487038481,-150.0,0.0001994,2]
[358832479,1745487038492,-591.19722479,0.00019973,2]
[358832481,1745487038502,-157.61510103,0.00019973,2]
[358832483,1745487038512,-268.03561214,0.00019973,2]
[358832485,1745487038521,-500.0,0.00019973,2]
[358832487,1745487038532,-500.0,0.00019973,2]
[358832489,1745487038541,-207.4,0.00019974,2]
[358832491,1745487038551,-5285.70211489,0.00019976,2]
[358832493,1745487038561,-9395.87657277,0.00019985,2]
[358832495,1745487038570,-976.3841661,0.00019986,2]
[358832497,1745487038581,-10610.0697201,0.00019986,2]
[358832499,1745487038594,-3705.5868121,0.00019986,2]
[358832501,1745487038611,-994.2190519,0.00019986,2]
[358832504,1745487038622,-678.8093822,0.00019986,2]
[358832506,1745487038633,-63802.0631407,0.00019986,2]
[358832508,1745487038645,-68547.3851588,0.00019986,2]
[358832510,1745487038655,-151.0,0.00019988,2]
[358832512,1745487038666,-151.0,0.00019988,2]
[358832514,1745487038676,-500.0,0.00019999,2]
[358832516,1745487038685,-500.0,0.00019999,2]
[358832518,1745487038695,-500.0,0.00019999,2]
[358832520,1745487038705,-500.0,0.00019999,2]
[358832522,1745487038715,-500.0,0.00019999,2]
[358832524,1745487038724,-500.0,0.00019999,2]
[358832526,1745487038735,-500.0,0.00019999,2]
[358832528,1745487038745,-500.0,0.00019999,2]
[358832530,1745487038756,-745.0,0.00019999,2]
[358832532,1745487038766,-516.29107146,0.0002,2]
[358832534,1745487038776,-1085639.63952663,0.0002,2]
[358832536,1745487038786,-1008658.63201814,0.0002,2]
[358832538,1745487038799,-2494318.525,0.0002,2]
[358832663,1745487040043,-834.32733642,0.0002,2]
[358832914,1745487042629,-131285.06475345,0.0002,2]
[358832929,1745487042741,4000.0,0.00018906,2]
[358832943,1745487042854,-500.0,0.0002,2]
[358832945,1745487042868,-184152.64483164,0.0002,2]
[358832956,1745487042965,-10117.46278524,0.0002,2]
[358833064,1745487046104,-164.93490115,0.00019999,2]
[358833065,1745487046118,-5370.60509885,0.0002,2]
[358833066,1745487046133,-11874.4697873,0.0002,2]
[358833166,1745487047379,-3747.57806756,0.0002,2]
[358833168,1745487047393,-500.0,0.0002,2]
[358833339,1745487053569,500.0,0.000378,60]
[358833340,1745487277837,10000.0,0.00037808,60]
[358833341,1745487285024,10000.0,0.00037808,60]
[358833342,1745487293270,10000.0,0.00037808,60]
[358833343,1745487299696,10000.0,0.00037808,60]
[358833344,1745487307830,10000.0,0.00037808,60]
[358833345,1745487317933,7375.0,0.00037808,60]
[358833347,1745487340457,-8500.0,0.0003,30]
[358833348,1745487340487,-500.0,0.00030624,30]
[358833349,1745487340514,-327.89688101,0.00030624,30]
[358833350,1745487340544,-585.03603,0.0003121,30]
[358833351,1745487340572,-586.2600229,0.000318,35]
[358833352,1745487340600,-500.0,0.00032,32]
[358833353,1745487340633,-1295.07,0.00032904,30]
[358833354,1745487340662,-343.9,0.00034,43]
[358833355,1745487340696,-150.0,0.00034114,30]
[358833356,1745487340724,-150.0,0.00034114,30]